bitfinex-derivatives/quotes_BTCF0:USTF0_20210703
["timestamp","ask_amount","ask_price","bid_price","bid_amount"]
[1625337904784,0.54426544,34702.0,34700.0,0.01351817]
[1625337904885,0.48526544,34702.0,34700.0,0.01351817]
[1625337905135,0.54426544,34702.0,34700.0,0.01351817]
[1625337905235,0.48526544,34702.0,34700.0,0.01351817]
[1625337905335,0.54426544,34702.0,34700.0,0.01351817]
[1625337905436,0.54426544,34702.0,34700.0,1.50619681]
[1625337905535,0.48526544,34702.0,34700.0,1.50619681]
[1625337905738,0.48526544,34702.0,34701.0,0.00498573]
[1625337905838,0.54426544,34702.0,34701.0,0.00498573]
[1625337905939,0.48526544,34702.0,34701.0,0.00498573]
[1625337906138,0.54426544,34702.0,34701.0,0.00498573]
[1625337906287,0.48526544,34702.0,34701.0,0.00498573]
[1625337907189,0.48526544,34702.0,34701.0,1.49801268]
[1625337907389,0.48526544,34702.0,34701.0,1.50655004]
[1625337907889,0.48526544,34702.0,34701.0,1.49801268]
[1625337908141,0.48526544,34702.0,34701.0,1.50655003]
[1625337908693,0.24057544,34702.0,34701.0,1.50655003]
[1625337908945,0.24057544,34702.0,34701.0,2.83551247]
[1625337910695,0.24057544,34702.0,34701.0,2.92201247]
[1625337910795,0.24057544,34702.0,34701.0,3.13759247]
[1625337910898,0.24057544,34702.0,34701.0,3.29166791]
[1625337911050,0.24057544,34702.0,34701.0,3.35066791]
[1625337911647,0.24057544,34702.0,34701.0,3.40966791]
[1625337912097,1.45105088,34707.0,34701.0,3.40966791]
[1625337912405,1.45105088,34707.0,34701.0,5.08254436]
[1625337912599,1.45105088,34707.0,34702.0,0.01351917]
[1625337912749,1.45105088,34707.0,34702.0,0.13151917]
[1625337912909,1.45105088,34707.0,34706.0,0.24057544]
[1625337913050,1.21047544,34707.0,34706.0,4.8111422]
[1625337913149,1.21047544,34707.0,34706.0,4.8701422]
[1625337913451,1.21047544,34707.0,34706.0,4.88366134]
[1625337914903,1.21047544,34707.0,34706.0,6.05114052]
[1625337918715,1.44349544,34707.0,34706.0,5.99214052]
[1625337918813,1.44349544,34707.0,34706.0,5.93314052]
[1625337919267,1.44349544,34707.0,34706.0,4.26218987]
[1625337919364,1.50249544,34707.0,34706.0,4.26218987]
[1625337919715,1.50249544,34707.0,34706.0,4.2536548]
[1625337920969,1.50249544,34707.0,34706.0,4.3126548]
[1625337921122,1.50249544,34707.0,34706.0,4.2536548]
[1625337922573,1.44349544,34707.0,34706.0,4.2536548]
[1625337923125,1.44349544,34707.0,34706.0,4.3126548]
[1625337923325,1.44349544,34707.0,34706.0,4.32119121]
[1625337923575,1.44349544,34707.0,34706.0,4.3126548]
[1625337923879,1.44349544,34707.0,34706.0,4.32119112]
[1625337923977,1.21047544,34707.0,34706.0,4.32119112]
[1625337924376,1.21047544,34707.0,34706.0,4.3126548]
[1625337924529,1.21047544,34707.0,34706.0,4.2536548]
[1625337924630,1.44759544,34707.0,34706.0,4.01307936]
[1625337924731,1.50659544,34707.0,34706.0,4.01307936]
[1625337924979,1.98774632,34707.0,34706.0,4.01307936]
[1625337925079,1.98774632,34707.0,34706.0,3.5093994]
[1625337925628,1.98774632,34707.0,34706.0,1.5079994]
[1625337925880,1.98774632,34707.0,34706.0,0.5791994]
[1625337926331,1.98774632,34707.0,34706.0,0.58417393]
[1625337928537,2.15802614,34707.0,34706.0,0.58417393]
[1625337928638,1.92090614,34707.0,34706.0,0.58417393]
[1625337929892,1.75062632,34707.0,34706.0,0.58417393]
[1625337930392,1.75062632,34707.0,34706.0,0.59271042]
[1625337932248,1.75062632,34707.0,34706.0,0.58417393]
[1625337933854,1.69162632,34707.0,34706.0,0.58417393]
[1625337934404,1.75062632,34707.0,34706.0,0.59271052]
[1625337934655,1.75062632,34707.0,34706.0,0.58417393]
[1625337934756,2.00613049,34707.0,34706.0,0.58417393]
[1625337936559,1.83585108,34707.0,34706.0,0.58417393]
[1625337937463,2.00614758,34707.0,34706.0,0.58417393]
[1625337937765,1.83585108,34707.0,34706.0,0.58417393]
[1625337937912,1.83585108,34707.0,34706.0,0.59271075]
[1625337938166,1.75062632,34707.0,34706.0,0.59271075]
[1625337938465,1.69162632,34707.0,34706.0,0.59271075]
[1625337939966,1.75062632,34707.0,34706.0,0.59271075]
[1625337941074,1.75062632,34707.0,34706.0,1.92277267]
[1625337941471,1.83588426,34707.0,34706.0,1.92277267]
[1625337942122,2.00624025,34707.0,34706.0,1.92277267]
[1625337942272,2.00624025,34707.0,34706.0,1.91423585]
[1625337942472,1.92098231,34707.0,34706.0,1.91423585]
[1625337942573,1.75062632,34707.0,34706.0,1.91423585]
[1625337942827,1.75062632,34707.0,34706.0,0.58417393]
[1625337944532,1.75062632,34707.0,34706.0,1.91624615]
[1625337946180,1.75062632,34707.0,34706.0,1.9247832]
[1625337949691,1.75062632,34707.0,34706.0,2.1233232]
[1625337949842,1.75062632,34707.0,34706.0,3.62034917]
[1625337954698,1.75062632,34707.0,34706.0,4.28620857]
[1625337955547,1.69162632,34707.0,34706.0,4.28620857]
[1625337957000,1.75062632,34707.0,34706.0,4.28620857]
[1625337957202,1.69162632,34707.0,34706.0,4.28620857]
[1625337957302,1.75062632,34707.0,34706.0,4.28620857]
[1625337957454,1.83592162,34707.0,34706.0,2.7891826]
[1625337958004,1.83592162,34707.0,34706.0,2.77567102]
[1625337958357,1.83592162,34707.0,34706.0,2.78915886]
[1625337958458,1.92106234,34707.0,34706.0,2.78915886]
[1625337959011,1.75062632,34707.0,34706.0,2.78915886]
[1625337962821,2.4319314,34707.0,34706.0,2.78915886]
[1625337963676,3.45385326,34707.0,34706.0,1.45708664]
[1625337963776,3.45385326,34707.0,34706.0,1.25854664]
[1625337964027,3.45385326,34707.0,34706.0,2.59244813]
[1625337964278,3.82641326,34707.0,34706.0,2.58391121]
[1625337964535,3.82641326,34707.0,34706.0,2.49911121]
[1625337964777,3.82641326,34707.0,34706.0,2.46171121]
[1625337964978,6.38153543,34707.0,34706.0,0.67081032]
[1625337965078,6.38153543,34707.0,34706.0,0.65431032]
[1625337967082,6.38153543,34707.0,34706.0,0.00495092]
[1625337967484,6.38153543,34707.0,34706.0,0.16702083]
[1625337967734,6.38153543,34707.0,34706.0,0.17197223]
[1625337968735,6.38153543,34707.0,34706.0,0.25547612]
[1625337969436,6.38153543,34707.0,34706.0,0.17197223]
[1625337969988,6.38153543,34707.0,34706.0,0.25545006]
[1625337971246,6.38153543,34707.0,34706.0,0.0049514]
[1625337971646,5.01881496,34707.0,34706.0,0.0049514]
[1625337971746,5.01881496,34707.0,34703.0,1.17275601]
[1625337972046,1.19138058,34706.0,34704.0,0.00495123]
[1625337972147,1.25038058,34706.0,34704.0,0.00495123]
[1625337972247,1.33758058,34706.0,34704.0,0.00495123]
[1625337973753,1.19147891,34705.0,34704.0,0.00495123]
[1625337973851,1.53421891,34705.0,34704.0,0.00495123]
[1625337974703,1.53421891,34705.0,34702.0,1.17345162]
[1625337974955,1.53421891,34705.0,34703.0,0.0049515]
[1625337975054,1.19157281,34704.0,34703.0,0.0049515]
[1625337975154,1.25057281,34704.0,34703.0,0.0049515]
[1625337975304,1.49114825,34704.0,34703.0,0.0049515]
[1625337975755,1.49114825,34704.0,34702.0,0.00495154]
[1625337976158,1.1917073,34703.0,34702.0,0.00495154]
[1625337976264,1.1917073,34703.0,34702.0,5.154e-05]
[1625337976357,0.0874,34702.0,34701.0,1.09631882]
[1625337976459,0.1464,34702.0,34701.0,1.02521882]
[1625337976558,0.2054,34702.0,34701.0,0.95731882]
[1625337976711,0.2054,34702.0,34701.0,0.25088731]
[1625337976806,0.2054,34702.0,34701.0,0.25583253]
[1625337977059,3.09986515,34702.0,34701.0,0.00494522]
[1625337977312,3.84044059,34702.0,34700.0,0.00494552]
[1625337977661,1.36122642,34701.0,34700.0,0.00494552]
[1625337977758,1.92022642,34701.0,34700.0,0.00494552]
[1625337978008,1.97922642,34701.0,34700.0,0.00494552]
[1625337978110,1.97922642,34701.0,34699.0,0.00494566]
[1625337978408,1.47922642,34701.0,34699.0,0.00494566]
[1625337978510,1.36157369,34700.0,34699.0,0.00494566]
[1625337978609,1.47957369,34700.0,34699.0,0.00494566]
[1625337979311,1.72014913,34700.0,34699.0,0.00494566]
[1625337979523,2.22014913,34700.0,34691.0,1.33865751]
[1625337979622,2.22014913,34700.0,34691.0,0.33845751]
[1625337979718,3.75105182,34700.0,34687.0,1.33946027]
[1625337980015,3.75105182,34700.0,34692.0,0.00493939]
[1625337980119,1.53095075,34696.0,34692.0,0.00493939]
[1625337980218,0.5,34695.0,34692.0,0.00493939]
[1625337980322,0.5,34695.0,34688.0,0.00493939]
[1625337980418,0.559,34695.0,34688.0,0.00493939]
[1625337980517,0.618,34695.0,34681.0,1.50779432]
[1625337980817,0.618,34695.0,34682.0,0.00493947]
[1625337981271,0.7036,34695.0,34682.0,0.00493947]
[1625337981368,0.96230176,34683.0,34682.0,0.00493947]
[1625337981468,1.18252176,34683.0,34682.0,0.00493947]
[1625337981568,1.24152176,34683.0,34682.0,0.00493947]
[1625337982120,1.24152176,34683.0,34681.0,0.00494652]
[1625337983723,1.24152176,34683.0,34680.0,0.00494661]
[1625337985226,1.24152176,34683.0,34682.0,0.50151827]
[1625337985577,1.24152176,34683.0,34682.0,0.5064651]
[1625337985927,1.02130176,34683.0,34682.0,0.5064651]
[1625337988080,1.02130176,34683.0,34682.0,0.7567251]
[1625337989883,1.02130176,34683.0,34682.0,0.25520683]
[1625337990235,1.02130176,34683.0,34682.0,0.75561673]
[1625337993090,1.02130176,34683.0,34682.0,0.7506699]
[1625337993239,1.10730176,34683.0,34682.0,0.7506699]
[1625337993340,1.10730176,34683.0,34682.0,0.75561663]
[1625337993439,1.02130176,34683.0,34682.0,0.75561663]
[1625337994443,1.10780176,34683.0,34682.0,0.75561663]
[1625337998701,1.02130176,34683.0,34682.0,0.75561663]
[1625338000505,1.02130176,34683.0,34682.0,1.08891343]
[1625338000955,1.02130176,34683.0,34682.0,0.75561663]
[1625338001506,1.02130176,34683.0,34682.0,0.58852966]
[1625338003009,1.23583176,34683.0,34682.0,0.33826966]
[1625338003212,1.23583176,34683.0,34682.0,0.00494673]
[1625338003612,1.23583176,34683.0,34681.0,0.00493645]
[1625338003811,1.23583176,34683.0,34682.0,0.00493647]
[1625338004063,1.23583176,34683.0,34680.0,0.00493647]
[1625338004213,1.02130176,34683.0,34680.0,0.00493647]
[1625338006368,1.08030176,34683.0,34680.0,0.00493647]
[1625338007472,1.02130176,34683.0,34680.0,0.00493647]
[1625338008221,1.02130176,34683.0,34680.0,0.01347855]
[1625338008323,1.02130176,34683.0,34680.0,0.34566321]
[1625338008675,1.02130176,34683.0,34681.0,0.01347842]
[1625338008774,1.02130176,34683.0,34681.0,0.21387842]
[1625338009174,1.02130176,34683.0,34682.0,0.0049363]
[1625338012326,1.02130176,34683.0,34682.0,0.0134783]
[1625338014336,1.02130176,34683.0,34682.0,0.34568743]
[1625338016194,1.02130176,34683.0,34682.0,0.51202646]
[1625338022861,1.02130176,34683.0,34682.0,0.84561875]
[1625338023311,1.02130176,34683.0,34682.0,0.51202646]
[1625338024614,1.02130176,34683.0,34682.0,0.71655646]
[1625338025316,1.02130176,34683.0,34682.0,1.38411485]
[1625338027521,1.02130176,34683.0,34682.0,2.3862145]
[1625338029575,1.36137694,34683.0,34682.0,2.3862145]
[1625338031030,1.02130176,34683.0,34682.0,3.55616636]
[1625338031732,1.02130176,34683.0,34682.0,4.89393697]
[1625338033736,1.361931,34683.0,34682.0,4.89393697]
[1625338034287,1.302931,34683.0,34682.0,4.89393697]
[1625338034437,1.361931,34683.0,34682.0,4.89393697]
[1625338035597,2.21467404,34683.0,34682.0,4.89393697]
[1625338037049,2.15567404,34683.0,34682.0,4.89393697]
[1625338037199,2.21467404,34683.0,34682.0,4.89393697]
[1625338037299,2.15567404,34683.0,34682.0,4.89393697]
[1625338037399,2.21467404,34683.0,34682.0,4.89393697]
[1625338037499,2.15567404,34683.0,34682.0,4.89393697]
[1625338037601,2.21467404,34683.0,34682.0,4.89393697]
[1625338037749,2.15567404,34683.0,34682.0,4.89393697]
[1625338037849,2.21467404,34683.0,34682.0,4.89393697]
[1625338037950,2.15567404,34683.0,34682.0,4.89393697]
[1625338038250,2.21467404,34683.0,34682.0,4.89393697]
[1625338038351,2.15567404,34683.0,34682.0,4.89393697]
[1625338038651,2.21467404,34683.0,34682.0,4.89393697]
[1625338038752,2.15567404,34683.0,34682.0,4.89393697]
[1625338038901,2.21467404,34683.0,34682.0,4.89393697]
[1625338039405,3.23861553,34683.0,34682.0,6.40359367]
[1625338040504,3.17961553,34683.0,34682.0,6.40359367]
[1625338040605,3.23861553,34683.0,34682.0,6.40359367]
[1625338040704,3.17961553,34683.0,34682.0,6.40359367]
[1625338041207,3.23861553,34683.0,34682.0,6.40359367]
[1625338041606,3.17961553,34683.0,34682.0,6.40359367]
[1625338042711,3.23861553,34683.0,34682.0,6.40359367]
[1625338042814,2.15567404,34683.0,34682.0,6.40359367]
[1625338043563,1.02397623,34684.0,34682.0,6.46259367]
[1625338043662,1.02407238,34685.0,34682.0,6.46259367]
[1625338043763,1.02407238,34685.0,34682.0,6.52159367]
[1625338043863,1.02407238,34685.0,34682.0,6.53867388]
[1625338043963,0.9355,34696.0,34684.0,3.17804315]
[1625338044065,0.34139886,34692.0,34684.0,3.23504315]
[1625338044164,0.34139886,34692.0,34684.0,3.23704315]
[1625338044267,0.34139886,34692.0,34684.0,3.29604315]
[1625338044366,0.34139886,34692.0,34685.0,0.03054786]
[1625338044466,0.34138811,34693.0,34691.0,1.76892405]
[1625338044567,0.34138811,34693.0,34691.0,1.88692405]
[1625338044866,0.34137676,34694.0,34692.0,1.51798078]
[1625338045016,0.34137676,34694.0,34692.0,1.63598078]
[1625338045116,0.34137676,34694.0,34693.0,0.01346794]
[1625338045368,1.27642279,34696.0,34693.0,1.63324317]
[1625338045619,0.9355,34696.0,34695.0,1.50178427]
[1625338045719,0.9355,34696.0,34695.0,1.74235971]
[1625338045870,0.9355,34696.0,34695.0,2.52308603]
[1625338045969,0.9355,34696.0,34695.0,2.52801531]
[1625338047072,0.9355,34696.0,34695.0,1.02623104]
[1625338048023,0.9355,34696.0,34695.0,2.52826642]
[1625338049127,0.9355,34696.0,34695.0,1.02623104]
[1625338052532,0.9355,34696.0,34695.0,0.96723104]
[1625338052831,1.13941,34696.0,34695.0,0.96723104]
[1625338053733,1.19841,34696.0,34695.0,0.96723104]
[1625338053883,1.53839378,34696.0,34695.0,0.96723104]
[1625338054238,1.33448378,34696.0,34695.0,0.96723104]
[1625338054686,1.27548378,34696.0,34695.0,1.33729104]
[1625338054884,0.9355,34696.0,34695.0,1.33729104]
[1625338055785,0.9355,34696.0,34695.0,1.27829104]
[1625338056589,0.9945,34696.0,34695.0,1.27829104]
[1625338057895,0.9945,34696.0,34695.0,0.96723104]
[1625338058596,0.9355,34696.0,34695.0,0.96723104]
[1625338058699,0.9945,34696.0,34695.0,0.96723104]
[1625338062100,0.9945,34696.0,34695.0,1.26358104]
[1625338066806,0.9945,34696.0,34695.0,0.96723104]
[1625338067809,0.9355,34696.0,34695.0,0.96723104]
[1625338068908,0.9355,34696.0,34695.0,2.13295638]
[1625338069108,0.9945,34696.0,34695.0,2.13295638]
[1625338069208,0.9945,34696.0,34695.0,0.96723104]
[1625338076925,0.9945,34696.0,34695.0,1.96727214]
[1625338077025,0.9945,34696.0,34695.0,2.16996214]
[1625338079578,1.33436615,34696.0,34695.0,2.16996214]
[1625338079778,1.42166615,34696.0,34695.0,2.16996214]
[1625338080430,1.33436615,34696.0,34695.0,2.16996214]
[1625338080882,0.9945,34696.0,34695.0,2.16996214]
[1625338081632,0.9945,34696.0,34695.0,2.17850168]
[1625338081884,0.9355,34696.0,34695.0,2.17850168]
[1625338081984,0.9945,34696.0,34695.0,2.17850168]
[1625338082134,0.9355,34696.0,34695.0,2.17850168]
[1625338082235,0.9945,34696.0,34695.0,2.17850168]
[1625338083136,1.33438954,34696.0,34695.0,2.17850168]
[1625338084545,1.27538954,34696.0,34695.0,2.17850168]
[1625338084646,1.33438954,34696.0,34695.0,2.17850168]
[1625338087752,1.33438954,34696.0,34695.0,2.16996214]
[1625338087852,1.33438954,34696.0,34695.0,2.16503286]
[1625338088052,1.33438954,34696.0,34695.0,2.17850588]
[1625338088905,0.9945,34696.0,34695.0,2.17850588]
[1625338090408,1.3347308,34696.0,34695.0,3.34882042]
[1625338090959,0.9945,34696.0,34695.0,3.34882042]
[1625338092414,0.9355,34696.0,34695.0,3.34882042]
[1625338093563,0.9945,34696.0,34695.0,3.34882042]
[1625338097019,2.01611757,34696.0,34695.0,3.34882042]
[1625338099778,2.32886757,34696.0,34695.0,2.38651866]
[1625338099881,2.32886757,34696.0,34695.0,2.18382866]
[1625338099979,2.32886757,34696.0,34695.0,2.17528897]
[1625338099980,3.58034916,34696.0,34695.0,2.17528897]
[1625338100078,4.06150004,34696.0,34695.0,2.17528897]
[1625338100478,4.06150004,34696.0,34695.0,2.13858579]
[1625338100580,4.06150004,34696.0,34695.0,0.00493333]
[1625338100581,6.95791647,34696.0,34695.0,0.00493333]
[1625338100830,6.95791647,34696.0,34693.0,0.00492857]
[1625338100831,0.059,34695.0,34693.0,0.00492857]
[1625338101028,0.118,34695.0,34693.0,0.00492857]
[1625338101129,0.13103287,34695.0,34693.0,0.00492857]
[1625338101279,4.09160322,34694.0,34693.0,0.00492857]
[1625338101380,0.087,34693.0,34692.0,0.00492874]
[1625338101630,0.21801911,34693.0,34692.0,0.00492874]
[1625338101880,0.205,34693.0,34692.0,0.00492874]
[1625338101980,4.29419779,34693.0,34692.0,0.00492874]
[1625338102131,4.53477323,34693.0,34691.0,0.00493489]
[1625338102683,4.08919696,34692.0,34691.0,0.00493489]
[1625338102932,4.20719696,34692.0,34691.0,0.00493489]
[1625338103183,4.20719696,34692.0,34690.0,0.34127968]
[1625338103386,4.08851108,34691.0,34690.0,0.00493489]
[1625338103482,4.20651108,34691.0,34689.0,0.33614994]
[1625338103733,4.88806454,34691.0,34690.0,0.00493551]
[1625338104085,5.12863998,34691.0,34690.0,0.00493551]
[1625338104886,5.12863998,34691.0,34690.0,0.00093551]
[1625338105037,5.12863998,34691.0,34689.0,0.00493561]
[1625338105388,3.23531753,34690.0,34689.0,0.00493561]
[1625338105487,3.29431753,34690.0,34689.0,0.00493561]
[1625338105587,3.35331753,34690.0,34689.0,0.00493561]
[1625338106890,0.0866,34689.0,34688.0,0.34097524]
[1625338106995,0.36797,34689.0,34688.0,0.00493012]
[1625338107095,0.42697,34689.0,34687.0,0.33612387]
[1625338107346,0.42697,34689.0,34686.0,0.33610282]
[1625338107347,3.23385988,34688.0,34686.0,0.33610282]
[1625338107493,3.35185988,34688.0,34686.0,0.33610282]
[1625338107645,0.118,34688.0,34687.0,0.00493032]
[1625338107944,3.35188199,34688.0,34687.0,0.00493032]
[1625338108148,3.83303287,34688.0,34687.0,0.00493032]
[1625338108950,0.59915088,34688.0,34687.0,0.00493032]
[1625338109197,0.59915088,34688.0,34682.0,0.00493043]
[1625338109298,3.83181434,34688.0,34685.0,0.33599929]
[1625338109649,1.87158858,34686.0,34685.0,0.33599929]
[1625338109749,1.93058858,34686.0,34685.0,0.33599929]
[1625338109851,1.98958858,34686.0,34685.0,0.33599929]
[1625338110049,1.98958858,34686.0,34685.0,0.34092972]
[1625338113704,1.93058858,34686.0,34685.0,0.34092972]
[1625338114258,1.93058858,34686.0,34685.0,0.9189364]
[1625338114259,0.059,34686.0,34685.0,0.9189364]
[1625338114706,0.059,34686.0,34685.0,1.1822664]
[1625338114857,0.3991594,34686.0,34685.0,2.36092306]
[1625338115157,0.059,34686.0,34685.0,2.36092306]
[1625338116859,0.059,34686.0,34685.0,3.70804432]
[1625338120212,0.059,34686.0,34685.0,3.94861976]
[1625338120412,0.48115088,34688.0,34685.0,4.00761976]
[1625338120813,0.48115088,34688.0,34687.0,1.85058926]
[1625338121114,0.48115088,34688.0,34687.0,1.85551948]
[1625338121314,0.48115088,34688.0,34687.0,3.20116815]
[1625338122115,0.48115088,34688.0,34687.0,3.19623793]
[1625338122215,0.48115088,34688.0,34687.0,3.20115812]
[1625338122366,0.48115088,34688.0,34687.0,3.19623793]
[1625338122466,0.48115088,34688.0,34687.0,3.2011581]
[1625338122616,0.54015088,34688.0,34687.0,3.2011581]
[1625338123123,0.48115088,34688.0,34687.0,3.2011581]
[1625338124724,0.48115088,34688.0,34687.0,3.19623793]
[1625338124824,0.48115088,34688.0,34687.0,3.201158]
[1625338125074,0.48115088,34688.0,34687.0,3.20969921]
[1625338128829,0.48115088,34688.0,34687.0,3.201158]
[1625338129480,0.54015088,34688.0,34687.0,3.201158]
[1625338129580,0.48115088,34688.0,34687.0,3.201158]
[1625338129981,0.54015088,34688.0,34687.0,3.201158]
[1625338130732,0.54015088,34688.0,34687.0,4.21203161]
[1625338131181,0.48115088,34688.0,34687.0,4.21203161]
[1625338131282,0.54015088,34688.0,34687.0,4.21203161]
[1625338131886,0.48115088,34688.0,34687.0,4.21203161]
[1625338132486,0.59915088,34688.0,34687.0,4.21203161]
[1625338132587,0.85145088,34688.0,34687.0,4.21203161]
[1625338132786,0.85145088,34688.0,34687.0,0.00492007]
[1625338133337,0.85145088,34688.0,34685.0,0.48115088]
[1625338133338,3.74317229,34688.0,34686.0,0.68017704]
[1625338133539,3.74317229,34688.0,34687.0,0.0049212]
[1625338133938,2.21217323,34688.0,34687.0,0.0049212]
[1625338134238,5.61426074,34688.0,34687.0,0.0049212]
[1625338136196,5.61426074,34688.0,34686.0,0.00492111]
[1625338136794,4.76243879,34687.0,34686.0,0.00492111]
[1625338137045,4.88043879,34687.0,34686.0,0.00492111]
[1625338141007,3.51981487,34687.0,34686.0,0.17362919]
[1625338141460,3.51981487,34687.0,34686.0,0.00492111]
[1625338141910,4.88028512,34687.0,34686.0,0.00492111]
[1625338142313,5.12086056,34687.0,34686.0,0.00492111]
[1625338142510,6.65144098,34687.0,34685.0,0.00492279]
[1625338142759,6.65144098,34687.0,34686.0,0.00492274]
[1625338142860,1.88915586,34687.0,34686.0,0.00492274]
[1625338143009,1.88915586,34687.0,34682.0,0.00492274]
[1625338143160,6.65033684,34687.0,34682.0,0.00492274]
[1625338143409,6.65033684,34687.0,34686.0,0.00492294]
[1625338143511,1.88915586,34687.0,34686.0,0.00492294]
[1625338143609,1.88915586,34687.0,34682.0,0.00492331]
[1625338143809,1.88915586,34687.0,34686.0,0.00492331]
[1625338144060,1.88915586,34687.0,34683.0,0.00492335]
[1625338144161,6.64967199,34687.0,34683.0,0.00492335]
[1625338144412,0.24057544,34684.0,34681.0,0.00492339]
[1625338144511,0.0851,34683.0,34681.0,0.00492339]
[1625338144611,0.1441,34683.0,34679.0,0.50675362]
[1625338144711,0.2031,34683.0,34679.0,0.50675362]
[1625338144863,0.2031,34683.0,34680.0,0.00492334]
[1625338144961,1.36019383,34682.0,34680.0,0.00492334]
[1625338145062,1.47819383,34682.0,34680.0,0.00492334]
[1625338145514,3.40073515,34681.0,34680.0,0.00492334]
[1625338145612,3.51873515,34681.0,34680.0,0.00492334]
[1625338145713,3.79007515,34681.0,34680.0,0.00492334]
[1625338145913,3.79007515,34681.0,34679.0,0.00492343]
[1625338146063,3.87547515,34681.0,34679.0,0.00492343]
[1625338146164,3.39985266,34680.0,34679.0,0.00492343]
[1625338146313,3.51785266,34680.0,34679.0,0.00492343]
[1625338146413,3.99900354,34680.0,34679.0,0.00492343]
[1625338147265,3.99900354,34680.0,34678.0,0.00492364]
[1625338147717,3.39929049,34679.0,34678.0,0.00492364]
[1625338147818,3.51729049,34679.0,34678.0,0.00492364]
[1625338148920,0.118,34679.0,34678.0,0.00492364]
[1625338149722,3.51761316,34679.0,34678.0,0.00492364]
[1625338151080,4.87729964,34679.0,34678.0,0.00492364]
[1625338154185,2.32781653,34679.0,34678.0,0.00492364]
[1625338154587,3.51747477,34679.0,34678.0,0.00492364]
[1625338154987,2.32781653,34679.0,34678.0,0.00492364]
[1625338155889,3.51762075,34679.0,34678.0,0.00492364]
[1625338156391,2.32781653,34679.0,34678.0,0.00492364]
[1625338156641,3.51760905,34679.0,34678.0,0.00492364]
[1625338157846,0.118,34679.0,34678.0,0.00492364]
[1625338157945,0.30995,34679.0,34678.0,0.00492364]
[1625338158145,3.71019948,34679.0,34678.0,0.00492364]
[1625338158445,3.71019948,34679.0,34678.0,0.17358885]
[1625338158545,0.30995,34679.0,34678.0,0.17358885]
[1625338158794,2.52011472,34679.0,34678.0,0.17358885]
[1625338159446,3.71049392,34679.0,34678.0,0.51092973]
[1625338159647,3.71049392,34679.0,34678.0,0.50600609]
[1625338159747,3.71049392,34679.0,34678.0,0.59526213]
[1625338159897,0.30995,34679.0,34678.0,0.59526213]
[1625338160047,3.71109542,34679.0,34678.0,0.59526213]
[1625338162307,2.52076253,34679.0,34678.0,0.59526213]
[1625338162709,3.71101666,34679.0,34678.0,0.25792125]
[1625338163063,3.71101666,34679.0,34678.0,0.00492275]
[1625338164011,3.71101666,34679.0,34678.0,0.08927463]
[1625338164362,2.52076253,34679.0,34678.0,0.2579421]
[1625338164815,3.71082348,34679.0,34678.0,0.08927463]
[1625338165315,3.71082348,34679.0,34678.0,0.25765851]
[1625338165720,2.52076253,34679.0,34678.0,0.25765851]
[1625338165920,2.46176253,34679.0,34678.0,0.25765851]
[1625338166022,2.46176253,34679.0,34678.0,0.84555261]
[1625338166318,2.46176253,34679.0,34678.0,0.50930067]
[1625338166717,2.52076253,34679.0,34678.0,0.50930067]
[1625338166969,2.52076253,34679.0,34678.0,0.25738354]
[1625338167323,2.52076253,34679.0,34678.0,0.08907635]
[1625338167625,2.52076253,34679.0,34678.0,0.25752032]
[1625338168072,3.71067916,34679.0,34678.0,0.00492275]
[1625338170632,5.07045884,34679.0,34678.0,0.00492275]
[1625338172033,3.71067916,34679.0,34678.0,0.00492275]
[1625338172585,5.07030974,34679.0,34678.0,0.00492275]
[1625338172884,5.07030974,34679.0,34676.0,0.00492258]
[1625338173490,1.69971045,34677.0,34676.0,0.00492258]
[1625338173588,3.3994209,34677.0,34676.0,0.00492258]
[1625338173686,3.5174209,34677.0,34676.0,0.00492258]
[1625338173937,3.5174209,34677.0,34675.0,0.00492266]
[1625338174537,0.24057544,34676.0,34675.0,0.00492266]
[1625338174738,0.35857544,34676.0,34675.0,0.00492266]
[1625338174888,2.56791291,34676.0,34675.0,0.00492266]
[1625338176640,2.56791291,34676.0,34675.0,0.08910348]
[1625338177641,2.56791291,34676.0,34675.0,0.00492266]
[1625338181453,3.75783793,34676.0,34675.0,0.08918662]
[1625338181953,3.75783793,34676.0,34675.0,0.00492266]
[1625338184567,5.1181243,34676.0,34675.0,0.00492266]
[1625338184870,5.1181243,34676.0,34673.0,0.59037127]
[1625338184969,3.75783793,34676.0,34674.0,0.05705648]
[1625338185119,3.75783793,34676.0,34674.0,0.04855648]
[1625338185270,3.40229472,34675.0,34674.0,0.21736751]
[1625338185368,3.40229472,34675.0,34674.0,0.20766751]
[1625338185470,3.46129472,34675.0,34674.0,0.20766751]
[1625338185571,3.46129472,34675.0,34674.0,0.21258256]
[1625338186623,3.70187016,34675.0,34674.0,0.21258256]
[1625338186873,3.70187016,34675.0,34674.0,0.17372608]
[1625338187174,3.70187016,34675.0,34674.0,0.51160593]
[1625338187773,0.29957544,34675.0,34674.0,0.00491505]
[1625338188025,3.70350028,34675.0,34674.0,0.51170062]
[1625338188175,3.70350028,34675.0,34674.0,0.50678557]
[1625338188428,3.70350028,34675.0,34673.0,1.18742596]
[1625338188525,3.70350028,34675.0,34674.0,0.17384724]
[1625338188876,2.51219465,34675.0,34674.0,2.19972454]
[1625338189176,3.70416524,34675.0,34674.0,2.19972454]
[1625338189477,2.51219465,34675.0,34674.0,2.19972454]
[1625338190632,2.51219465,34675.0,34674.0,2.39182454]
[1625338190731,3.7042095,34675.0,34674.0,2.39182454]
[1625338191030,2.51219465,34675.0,34674.0,2.39182454]
[1625338191933,2.51219465,34675.0,34674.0,3.57503132]
[1625338191934,3.70519904,34675.0,34674.0,3.57503132]
[1625338192633,2.51219465,34675.0,34674.0,3.81560676]
[1625338193739,3.70556423,34675.0,34674.0,5.16789475]
[1625338194688,3.46498879,34675.0,34674.0,5.16789475]
[1625338195790,2.27161921,34675.0,34674.0,5.16789475]
[1625338196291,3.4653778,34675.0,34674.0,5.16789475]
[1625338196891,2.27161921,34675.0,34674.0,5.16789475]
[1625338197244,3.46538367,34675.0,34674.0,5.16789475]
[1625338200300,3.46538367,34675.0,34674.0,5.1629798]
[1625338213128,3.40638367,34675.0,34674.0,5.1629798]
[1625338213229,3.46538367,34675.0,34674.0,5.1629798]
[1625338213328,3.40638367,34675.0,34674.0,5.1629798]
[1625338213981,3.40638367,34675.0,34674.0,5.1715245]
[1625338214082,1.19147579,34675.0,34674.0,6.69126723]
[1625338214431,1.19147579,34675.0,34674.0,6.75026723]
[1625338214835,0.17082863,34676.0,34674.0,6.75026723]
[1625338215187,0.17082863,34676.0,34675.0,6.24883348]
[1625338215284,0.17082863,34676.0,34675.0,6.26229063]
[1625338215387,0.17082863,34676.0,34675.0,6.32129063]
[1625338215587,0.17075038,34677.0,34675.0,6.32129063]
[1625338216037,0.17074165,34678.0,34676.0,6.26260324]
[1625338216137,0.17074165,34678.0,34676.0,6.32160324]
[1625338216287,0.17074165,34678.0,34677.0,0.01345665]
[1625338216387,0.51189078,34678.0,34677.0,6.26345747]
[1625338216587,0.51189078,34678.0,34677.0,6.32245747]
[1625338216738,0.51188987,34679.0,34677.0,6.32245747]